Cogmind - Beta 14 @@@ ROGUE MODE // 2024.08.18 @ 14:07:14 Player: Daffa0360 Result: Self-destructed Performance ------------- Evolutions (4) 2000 Regions Visited (11) 2200 Robots Destroyed (81) 405 Value Destroyed (6186) 6186 Prototype IDs (33) 660 Alien Tech Used (0) 0 Bonus (4314) 4314 TOTAL SCORE: 15765 Bonus ------- High Alert Combat Kills 1331 Follower Combat Kills 1083 Entered Garrisons 600 Used RIF Installer 1000 Aligned with FarCom 300 Cogmind --------- Core Integrity 567/850 Matter 300/300 Energy 16/100 System Corruption 18% Temperature Cool (0) Movement Core (750) Ox14 Location -6/Factory Parts ------- > --- POWER (2) -------- (None) > --- PROPULSION (2) --- (None) > --- UTILITY (9) ------ High-capacity Storage Unit Graphene Brace Hacking Suite Relay Coupler [NC] (11) Relay Coupler [NC] (33) Relay Coupler [Grunt] (1) Improved Dynamic Insulation System > --- WEAPON (2) ------- (None) > --- INVENTORY (20) --- Gravity Neutralizer Layered Heavy Armor Plating Relay Coupler [NC] (26) Relay Coupler [Swarmer] (46) Relay Coupler [Brawler] (23) Relay Coupler [Heavy] (14) Relay Coupler [Behemoth] (10) Chainsword Chainsword Segregator Peak State ------------ > --- POWER ------------ Particle Reactor > --- PROPULSION ------- Improved Heavy Treads > --- UTILITY ---------- High-capacity Storage Unit Enhanced Optical Array Active Sensor Suite Core Analyzer Relay Coupler [Grunt] Relay Coupler [Sentry] > --- WEAPON ----------- Chainsword Chainsword > --- INVENTORY -------- Micro Nuclear Core Gravity Neutralizer Layered Heavy Armor Plating Graphene Brace Relay Coupler [NC] Relay Coupler [NC] Relay Coupler [Swarmer] Relay Coupler [Brawler] Relay Coupler [Duelist] Relay Coupler [Behemoth] Remote Datajack Segregator Longsword +1 [Rating: 80] Favorites ----------- Power Micro Nuclear Core Engine Cooled Deuterium Engine Power Core Micro Nuclear Core Reactor Particle Reactor Propulsion Aluminum Leg Treads Improved Heavy Treads Leg Aluminum Leg Wheel Compact Wheel Hover Unit Aerolev Unit Flight Unit Nuclear Pulse Array Utility Small Storage Unit Device Advanced Weight Redist. System Storage Small Storage Unit Processor Machine Analyzer Hackware Relay Coupler [Grunt] Protection Improved Light Armor Plating Weapon Longsword +1 Energy Gun Small Laser Ballistic Gun Gauss Rifle Launcher Grenade Launcher Special Weapon Remote Datajack Slashing Weapon Longsword +1 Special Melee Weapon Improved Datajack Build | -11 -10 -10 -10 -9 -8 -8 -7 -7 -7 -7 -6 ------- Run | Yrd Mat Min Exi Min Mat Gar Fac Gar Fac Gar Fac Slots Evolved 8 | . . . . . 4 . 2 . . . 2 Power 1 | . . . . . . . . . . . 1 Propulsion . | . . . . . . . . . . . . Utility 7 | . . . . . 4 . 2 . . . 1 Weapon . | . . . . . . . . . . . . Parts Attached 131 | 6 3 4 2 1 17 17 16 9 4 41 11 Power 20 | 1 . 1 1 . 1 3 2 2 1 7 1 Engine 8 | 1 . 1 . . . . 1 1 1 2 1 Core 10 | . . . 1 . 1 3 1 1 . 3 . Reactor 2 | . . . . . . . . . . 2 . Propulsion 21 | 2 . 2 . . 4 6 1 . . 6 . Treads 3 | . . . . . . . . . . 3 . Leg 2 | . . 2 . . . . . . . . . Wheel 2 | 2 . . . . . . . . . . . Hover 11 | . . . . . 3 6 . . . 2 . Flight 3 | . . . . . 1 . 1 . . 1 . Utility 47 | 1 . . . 1 6 7 5 5 3 12 7 Device 15 | . . . . 1 3 . 3 1 . 4 3 Storage 2 | 1 . . . . . . . . . 1 . Processor 10 | . . . . . 3 3 1 . 1 2 . Hackware 19 | . . . . . . 4 1 4 2 5 3 Protection 1 | . . . . . . . . . . . 1 Artifact . | . . . . . . . . . . . . Weapon 43 | 2 3 1 1 . 6 1 8 2 . 16 3 Energy Gun 5 | . . 1 . . 2 . 2 . . . . Energy Cannon . | . . . . . . . . . . . . Ballistic Gun 9 | 2 2 . . . 1 . 2 . . 2 . Ballistic Cannon . | . . . . . . . . . . . . Launcher 1 | . 1 . . . . . . . . . . Special Weapon 7 | . . . . . . 1 . 1 . 3 2 Impact Weapon . | . . . . . . . . . . . . Slashing Weapon 20 | . . . 1 . 3 . 4 1 . 10 1 Piercing Weapon . | . . . . . . . . . . . . Special Melee Weapon 1 | . . . . . . . . . . 1 . Unidentified Prototypes 10 | . . . . . 3 . 3 1 1 2 . Parts Lost 36 | . 1 6 . . 1 6 . 1 . 12 9 Power 10 | . . 2 . . . 2 . 1 . 4 1 Propulsion 9 | . . 2 . . . 3 . . . 3 1 Utility 10 | . . . . . 1 . . . . 4 5 Weapon 7 | . 1 2 . . . 1 . . . 1 2 Highest Loss Streak 5 | . 1 4 . . 1 2 . 1 . 4 5 To Critical Strikes . | . . . . . . . . . . . . Average Slot Usage (%) 85 | . 85 63 66 96 87 89 86 91 91 81 69 Engine 1 | . 14 5 . . . . . . 6 3 1 Core 6 | . . . 9 14 9 8 6 6 . 2 3 Treads 1 | . . . . . . . . . . 5 6 Leg 4 | . . 9 28 28 7 . . . . . . Wheel 1 | . 28 14 . . . . . . . . . Hover 3 | . . . . . 10 12 4 . . . . Flight 1 | . . . . . . . 5 7 7 . . Device 10 | . . . . 11 19 10 7 15 8 8 10 Storage 8 | . 14 14 14 14 9 9 7 7 7 4 6 Processor 20 | . . . . . 13 31 24 30 30 21 8 Hackware 7 | . . . . . . 1 13 6 12 16 16 Energy Gun 2 | . . 8 14 14 1 . . . . . . Ballistic Gun 1 | . 25 10 . . 3 . . . . . . Special Weapon 2 | . . . . . . 2 7 6 7 1 5 Slashing Weapon 9 | . . . . 14 13 12 6 7 7 10 7 Peak Build Rating 80 | 6 6 7 15 18 37 43 54 58 55 80 78 Average Rating 42 | 5 5 5 6 17 30 35 47 55 52 59 71 On Entrance 30 | . 6 6 4 15 18 36 42 54 54 53 78 Naked Turns . | . . . . . . . . . . . . Heaviest Build 69 | 13 15 13 14 15 23 17 21 22 23 68 69 Greatest Support 87 | 32 32 32 20 20 25 27 27 25 25 87 75 Greatest Overweight (x) 2 | . . 1 . . 2 2 1 . . 2 . Average Overweight (x) . | . . . . . . . . . . . . Largest Inventory Capacity 20 | 8 8 8 8 8 8 8 8 8 8 20 20 Average Capacity 9 | 6 8 8 8 8 8 8 8 8 8 13 20 Most Carried 16 | 5 7 7 5 7 8 8 8 8 8 16 16 Average Carried 7 | 3 6 5 4 3 7 6 7 7 7 8 13 Final Capacity 20 | 8 8 8 8 8 8 8 8 8 8 20 20 Final Carried 15 | 5 6 4 3 7 8 8 8 8 7 15 11 Class Distribution -------------------- 30% | Bothacker-Scout 17% | Bothacker-Assassin 14% | Assassin 12% | Mutant 9% | Scout 4% | Bothacker-Mutant 4% | Scavenger-Scout Dominant Class ---------------- Mutant | -10/Materials Mutant | -10/Mines Mutant | -10/Exiles Assassin | -9/Mines Assassin | -8/Materials Scout | -8/Garrison Bothacker-Scout | -7/Factory Bothacker-Scout | -7/Garrison Bothacker-Scout | -7/Factory Bothacker-Assassin | -7/Garrison Bothacker-Assassin | -6/Factory Resources | -11 -10 -10 -10 -9 -8 -8 -7 -7 -7 -7 -6 ----------- Run | Yrd Mat Min Exi Min Mat Gar Fac Gar Fac Gar Fac Matter Collected 2010 | 251 57 171 . . 167 340 175 150 80 469 150 Remotely . | . . . . . . . . . . . . Salvage Created 4704 | 49 95 141 . . 277 1280 89 958 156 1432 227 Parts 230 | 8 14 8 . . 16 70 7 39 6 49 13 Haulers Intercepted . | . . . . . . . . . . . . Recyclers Shooed . | . . . . . . . . . . . . Parts Field Recycled . | . . . . . . . . . . . . Retrieved Matter . | . . . . . . . . . . . . Parts Self-Destructed . | . . . . . . . . . . . . Prevented . | . . . . . . . . . . . . Kills | -11 -10 -10 -10 -9 -8 -8 -7 -7 -7 -7 -6 ------- Run | Yrd Mat Min Exi Min Mat Gar Fac Gar Fac Gar Fac Combat Hostiles Destroyed 72 | . 8 3 . . 4 24 3 9 2 15 4 Melee 58 | . . . . . 3 24 3 9 2 13 4 Guns 13 | . 7 3 . . 1 . . . . 2 . AOE 1 | . 1 . . . . . . . . . . Classes Destroyed 11 | 1 1 1 . . 4 2 . 1 . 1 . Tunneler 3 | 3 . . . . . . . . . . . Operator 2 | . . . . . 1 . . . 1 . . Watcher 4 | . . . . . 2 . . 1 1 . . Swarmer 17 | . 8 . . . . 4 2 . . 3 . Saboteur 3 | . . . . . . . . . . 3 . Grunt 26 | . . 3 . . 1 9 1 4 1 4 3 Brawler 1 | . . . . . . 1 . . . . . Duelist 2 | . . . . . . . . 1 1 . . Sentry 10 | . . . . . 2 2 . 2 . 4 . Hunter 4 | . . . . . 1 1 . 1 . 1 . Programmer 9 | . . . . . . 7 . 1 . . 1 Best Kill Streak 7 | 3 3 2 . . 2 7 3 2 3 3 1 Combat Bots Only 7 | . 3 2 . . 1 7 3 2 2 3 1 Max Kills in Single Turn 1 | 1 1 1 . . 1 1 1 1 1 1 1 Gunslinging . | . . . . . . . . . . . . Exploded 1 | . 1 . . . . . . . . . . Melee 1 | . . . . . 1 1 1 1 1 1 1 Uniques/NPCs Destroyed . | . . . . . . . . . . . . Combat | -11 -10 -10 -10 -9 -8 -8 -7 -7 -7 -7 -6 -------- Run | Yrd Mat Min Exi Min Mat Gar Fac Gar Fac Gar Fac Hostile Shots Fired 534 | . 53 28 . . 17 75 3 37 2 268 51 Missed 159 | . 10 6 . . 5 16 2 15 2 89 14 Damage Taken 4712 | . 343 316 . . 168 851 27 187 . 1938 882 Core 1406 | . 76 42 . . 55 288 . 32 . 630 283 Absorbed by Shields 8 | . . . . . . 8 . . . . . Regen/Repaired (Parts) 67 | . . . . . . . . . 67 . . Core Remaining (%) 48 | 100 . . . 52 . 37 . . . 5 . Volleys Fired 107 | 7 21 24 . . 2 8 5 11 13 10 6 Largest 2 | 2 2 2 . . 2 1 1 1 1 1 1 Hottest 78 | 40 40 60 . . 78 5 5 5 5 28 5 Shots Fired 139 | 14 34 35 . . 3 8 5 11 13 10 6 Gun 90 | 14 32 35 . . 3 . . . . 6 . Cannon . | . . . . . . . . . . . . Launcher 2 | . 2 . . . . . . . . . . Special 47 | . . . . . . 8 5 11 13 4 6 Kinetic 75 | 14 32 21 . . 2 . . . . 6 . Thermal 14 | . . 14 . . . . . . . . . Explosive 2 | . 2 . . . . . . . . . . Electromagnetic 1 | . . . . . 1 . . . . . . Robot Hit Streak 20 | 5 6 9 . . 3 5 10 20 3 8 3 Robot Miss Streak 5 | 1 5 5 . . . 1 . . 2 1 1 Penetration Max 1 | . . . . . . . . . . 1 . Secondary Targets 3 | . 2 1 . . . . . . . . . Max Gunslinging Chain 1 | . 1 1 . . . . . . . . . Shots Hit Robots 296 | 8 13 22 . . 20 61 8 42 12 89 21 Core Hits 123 | 4 8 11 . . 7 27 3 18 3 35 7 Critical Kills . | . . . . . . . . . . . . Critical Parts Destroyed . | . . . . . . . . . . . . Critical Strikes 23 | . . . . . 3 5 . 2 . 10 3 Sever 23 | . . . . . 3 5 . 2 . 10 3 Melee Attacks 463 | . . . . . 27 163 7 62 10 171 23 Thermal 7 | . . . . . . . . . . 7 . Impact . | . . . . . . . . . . . . Slashing 451 | . . . . . 27 163 7 62 10 159 23 Piercing . | . . . . . . . . . . . . Sneak Attacks 17 | . . . . . 2 5 . 6 1 2 1 Combat Hostiles 14 | . . . . . . 5 . 6 . 2 1 Follow-up Attacks 9 | . . . . . 1 3 . . . 5 . Damage Inflicted 12017 | 87 324 236 . . 942 2854 149 2508 224 3962 731 Guns 653 | 87 174 236 . . 33 . . . . 123 . Cannons . | . . . . . . . . . . . . Explosions 150 | . 150 . . . . . . . . . . Melee 11214 | . . . . . 909 2854 149 2508 224 3839 731 Ramming . | . . . . . . . . . . . . Kinetic 562 | 87 174 160 . . 18 . . . . 123 . Thermal 76 | . . 76 . . . . . . . . . Explosive 150 | . 150 . . . . . . . . . . Electromagnetic 15 | . . . . . 15 . . . . . . Impact . | . . . . . . . . . . . . Slashing 11214 | . . . . . 909 2854 149 2508 224 3839 731 Piercing . | . . . . . . . . . . . . Highest Corruption 18 | . . . . . . 6 . . . . 18 Average Corruption 6 | . . . . . . 4 . . . . 17 Corruption Purged . | . . . . . . . . . . . . Corruption Blocked . | . . . . . . . . . . . . Effects 66 | . . . . . . 51 . . . . 15 Message Errors 23 | . . . . . . 19 . . . . 4 Matter Fused 16 | . . . . . . 11 . . . . 5 Heat Flow Errors 9 | . . . . . . 7 . . . . 2 Energy Discharges 5 | . . . . . . 4 . . . . 1 Parts Fused 1 | . . . . . . 1 . . . . . Data Loss (minor) 6 | . . . . . . 6 . . . . . Data Loss (major) 5 | . . . . . . 3 . . . . 2 Alerts 1 | . . . . . . . . . . . 1 Overload Shots . | . . . . . . . . . . . . Overflow Damage 579 | . 7 . . . 88 241 . 150 55 38 . Projectiles . | . . . . . . . . . . . . Explosions 7 | . 7 . . . . . . . . . . Melee 572 | . . . . . 88 241 . 150 55 38 . Knockbacks . | . . . . . . . . . . . . Impact . | . . . . . . . . . . . . Kinetic . | . . . . . . . . . . . . Secondary . | . . . . . . . . . . . . Self-Inflicted Damage . | . . . . . . . . . . . . Shots . | . . . . . . . . . . . . Rammed . | . . . . . . . . . . . . Targets Rammed . | . . . . . . . . . . . . Kicked . | . . . . . . . . . . . . Crushed . | . . . . . . . . . . . . Highest Temperature 235 | . . 36 . . 6 232 . . . . 235 Average Temperature 75 | . . 10 . . 4 96 . . . . 108 Received Heat Transfer 1299 | . . 198 . . 72 201 18 60 . 579 171 Siege Activations 2 | . . . . . . . . . . 1 1 Total Turns 32 | . . . . . . . . . . 1 31 Longest Duration 31 | . . . . . . . . . . 1 31 Robots Corrupted . | . . . . . . . . . . . . Combat Hostiles . | . . . . . . . . . . . . Parts Fried . | . . . . . . . . . . . . Impact Corruptions . | . . . . . . . . . . . . Robots Melted . | . . . . . . . . . . . . Combat Hostiles . | . . . . . . . . . . . . Parts Melted . | . . . . . . . . . . . . Heat Transferred 175 | . . 175 . . . . . . . . . Parts Sabotaged 6 | . . . . . . . . . . 4 2 Parts Stolen . | . . . . . . . . . . . . Parts Stripped . | . . . . . . . . . . . . Power Chain Reactions . | . . . . . . . . . . . . Alert | -11 -10 -10 -10 -9 -8 -8 -7 -7 -7 -7 -6 ------- Run | Yrd Mat Min Exi Min Mat Gar Fac Gar Fac Gar Fac Peak Influence 3139 | 15 238 89 . . 101 2062 1163 1824 972 3139 1655 Initial 1647 | . 9 34 . . . 25 1082 728 957 536 1647 Average 953 | 4 108 46 . . 33 743 1076 1139 888 1654 1540 Maximum Alert Level 5 | . 1 . . . . 5 4 5 3 5 5 Low Security (%) 25 | 100 83 100 . 100 100 20 . . . . . Level 1 4 | . 16 . . . . 17 . . . . . Level 2 7 | . . . . . . 27 . . . 7 . Level 3 25 | . . . . . . 4 63 63 100 28 . Level 4 15 | . . . . . . 13 36 25 . 13 54 Level 5 20 | . . . . . . 16 . 11 . 50 45 High Security . | . . . . . . . . . . . . Max Security . | . . . . . . . . . . . . Squads Dispatched 8 | . 1 . . . 1 . . . 3 . 3 Investigation . | . . . . . . . . . . . . Extermination 2 | . . . . . . . . . 1 . 1 Reinforcement 3 | . 1 . . . 1 . . . 1 . . Assault 3 | . . . . . . . . . 1 . 2 Garrison . | . . . . . . . . . . . . Intercept . | . . . . . . . . . . . . Searches Triggered . | . . . . . . . . . . . . Construction Impeded . | . . . . . . . . . . . . Haulers Reinforced . | . . . . . . . . . . . . Active Scanning Responses . | . . . . . . . . . . . . Cargo Convoy Interrupts . | . . . . . . . . . . . . Stealth | -11 -10 -10 -10 -9 -8 -8 -7 -7 -7 -7 -6 --------- Run | Yrd Mat Min Exi Min Mat Gar Fac Gar Fac Gar Fac Distress Signals 5 | . 1 . . . 2 . . 1 1 . . Communications Jammed . | . . . . . . . . . . . . Distress Signals . | . . . . . . . . . . . . Times Spotted 141 | . 13 5 . . 12 30 7 14 11 35 14 Peak Tracking Total 7 | . 5 2 . . 2 7 3 5 5 4 5 Tactical Retreats 8 | . . 1 . . 1 1 . 1 . 4 . Traps | -11 -10 -10 -10 -9 -8 -8 -7 -7 -7 -7 -6 ------- Run | Yrd Mat Min Exi Min Mat Gar Fac Gar Fac Gar Fac Traps Triggered 8 | . . . . . . 4 . 2 . 2 . Indirectly . | . . . . . . . . . . . . Trap Hack Attempts . | . . . . . . . . . . . . Triggered . | . . . . . . . . . . . . Disarmed . | . . . . . . . . . . . . Reprogrammed . | . . . . . . . . . . . . Reused 4 | . . . . . 1 3 . . . . . Traps Extracted . | . . . . . . . . . . . . Installed 4 | . . . . . 1 3 . . . . . Triggered 4 | . . . . . 1 3 . . . . . Most Traps Carried 4 | . . . . 4 4 3 . . . . . Machines | -11 -10 -10 -10 -9 -8 -8 -7 -7 -7 -7 -6 ---------- Run | Yrd Mat Min Exi Min Mat Gar Fac Gar Fac Gar Fac Machines Disabled 24 | . . . . . 2 5 1 3 2 10 1 Max in Single Turn 1 | . . . . . 1 1 1 1 . 1 1 Garrison Relay 16 | . . . . . . 6 . 3 . 7 . Machines Repaired . | . . . . . . . . . . . . Machines Dismantled . | . . . . . . . . . . . . Machines Sabotaged . | . . . . . . . . . . . . Overloaded Fab Kills . | . . . . . . . . . . . . Hacking | -11 -10 -10 -10 -9 -8 -8 -7 -7 -7 -7 -6 --------- Run | Yrd Mat Min Exi Min Mat Gar Fac Gar Fac Gar Fac Machines Accessed 25 | . 2 . 1 . 7 1 7 1 3 2 1 Terminals 18 | . 2 . . . 6 1 4 1 1 2 1 Fabricators 3 | . . . . . . . 2 . 1 . . Repair Stations . | . . . . . . . . . . . . Recycling Units . | . . . . . . . . . . . . Scanalyzers . | . . . . . . . . . . . . Garrison Access 3 | . . . . . 1 . 1 . 1 . . Total Hacks 45 | . 7 . 1 . 15 3 9 1 4 4 1 Successful 22 | . 5 . 1 . 10 . 3 1 1 1 . Failed 23 | . 2 . . . 5 3 6 . 3 3 1 Catastrophic 4 | . . . . . . 1 . . . 2 1 Database Lockouts . | . . . . . . . . . . . . Manual 17 | . 2 . 1 . 11 . 3 . . . . Terminals 38 | . 7 . . . 14 3 6 1 2 4 1 Fabricators 3 | . . . . . . . 2 . 1 . . Repair Stations . | . . . . . . . . . . . . Recycling Units . | . . . . . . . . . . . . Scanalyzers . | . . . . . . . . . . . . Garrison Access 3 | . . . . . 1 . 1 . 1 . . Terminal Hacks 12 | . 5 . 1 . 4 . . 1 . 1 . Robot Analysis 1 | . . . . . 1 . . . . . . Emergency Access Points 2 | . . . . . . . . 1 . 1 . Terminal Index 1 | . 1 . . . . . . . . . . Alert Level 4 | . 2 . . . 2 . . . . . . Unreport Threat 1 | . 1 . . . . . . . . . . Locate Traps 1 | . . . . . 1 . . . . . . Dispatch Records 1 | . 1 . . . . . . . . . . Derelict Proto ID Bank 1 | . . . 1 . . . . . . . . Fabricator Hacks 2 | . . . . . . . 2 . . . . Network Status 1 | . . . . . . . 1 . . . . Build 1 | . . . . . . . 1 . . . . Repair Station Hacks . | . . . . . . . . . . . . Recycling Unit Hacks . | . . . . . . . . . . . . Scanalyzer . | . . . . . . . . . . . . Garrison Access Hacks 3 | . . . . . 1 . 1 . 1 . . Unlock Access 3 | . . . . . 1 . 1 . 1 . . Unauthorized Hacks 5 | . . . . . 5 . . . . . . Terminals 5 | . . . . . 5 . . . . . . Assimilate 2 | . . . . . 2 . . . . . . Botnet 3 | . . . . . 3 . . . . . . Fabricators . | . . . . . . . . . . . . Repair Stations . | . . . . . . . . . . . . Recycling Units . | . . . . . . . . . . . . Scanalyzers . | . . . . . . . . . . . . Garrison Access . | . . . . . . . . . . . . Data Cores Recovered 1 | . . . . . 1 . . . . . . Used 1 | . . . . . 1 . . . . . . Hacking Detections 18 | . 1 . . . 5 1 4 1 3 2 1 Full Trace Events 3 | . . . . . . 1 . . . 2 . Feedback Events 1 | . . . . . . 1 . . . . . Corruption 1 | . . . . . . 1 . . . . . Feedback Blocked . | . . . . . . . . . . . . Robot Schematics Acquired . | . . . . . . . . . . . . Robots Built . | . . . . . . . . . . . . Authchips . | . . . . . . . . . . . . Time . | . . . . . . . . . . . . Total Robot Build Rating . | . . . . . . . . . . . . Part Schematics Acquired . | . . . . . . . . . . . . Parts Built 1 | . . . . . . . 1 . . . . Authchips . | . . . . . . . . . . . . Time 106 | . . . . . . . 106 . . . . Total Part Build Rating 6 | . . . . . . . 6 . . . . Parts Repaired . | . . . . . . . . . . . . Time . | . . . . . . . . . . . . Parts Recycled . | . . . . . . . . . . . . Recycled Matter . | . . . . . . . . . . . . Retrieved Matter . | . . . . . . . . . . . . Retrieved Components . | . . . . . . . . . . . . Parts Scanalyzed . | . . . . . . . . . . . . Part Schematics Acquired . | . . . . . . . . . . . . Parts Damaged . | . . . . . . . . . . . . Bothacking | -11 -10 -10 -10 -9 -8 -8 -7 -7 -7 -7 -6 ------------ Run | Yrd Mat Min Exi Min Mat Gar Fac Gar Fac Gar Fac Used RIF Installer 2 | . . . . . . 1 . . . 1 . Robot Detection 1 | . . . . . . . . . . 1 . Robots Hacked 31 | . . . . . . 4 5 8 6 5 3 Non-combat 9 | . . . . . . . 4 . 4 1 . Combat 22 | . . . . . . 4 1 8 2 4 3 Robot Hacks Applied 36 | . . . . . . 5 5 10 6 7 3 map_walls 1 | . . . . . . . 1 . . . . drop_inventory 2 | . . . . . . . 1 . 1 . . purge_threat 2 | . . . . . . . . . 1 1 . spike_heat 1 | . . . . . . . . . . 1 . disable_weapons 1 | . . . . . . . . 1 . . . reboot_system 4 | . . . . . . . . 3 . . 1 go_dormant 2 | . . . . . . 1 . . . 1 . streamctrl_high 1 | . . . . . . . . 1 . . . formatsys_low 4 | . . . . . . . 1 . 2 1 . formatsys_high 18 | . . . . . . 4 2 5 2 3 2 Relay Couplers Released 62 | . . . . . . 23 . 12 . 27 . Machine Destruction 62 | . . . . . . 23 . 12 . 27 . Attached 18 | . . . . . . 4 1 4 2 5 2 Fabnet Peak Effective % . | . . . . . . . . . . . . Robots Rewired . | . . . . . . . . . . . . Allies Hacked 1 | . . . . . . . . 1 . . . Hacks Repelled . | . . . . . . . . . . . . Allies | -11 -10 -10 -10 -9 -8 -8 -7 -7 -7 -7 -6 -------- Run | Yrd Mat Min Exi Min Mat Gar Fac Gar Fac Gar Fac Total Allies 30 | . . 2 . . 1 4 3 8 4 6 2 Largest Group 6 | . . 2 2 . 1 3 5 6 5 3 2 Highest-Rated Group 274 | . . 41 41 . 10 60 86 274 112 174 76 Highest-Rated Ally 95 | . . 31 31 . 10 40 29 95 32 90 47 Total Orders 17 | . . . . . . . . 8 4 3 2 STAY 5 | . . . . . . . . 3 . 1 1 ROAM 2 | . . . . . . . . 2 . . . FOLLOW 5 | . . . . . . . . 3 . 1 1 AID 4 | . . . . . . . . . 3 1 . TUNNEL 1 | . . . . . . . . . 1 . . Ally Attacks 162 | . . 5 . . . 3 23 38 15 55 23 Total Damage 4113 | . . 42 . . . 58 347 1324 256 1817 269 Kills 37 | . . 1 . . . . 5 7 2 21 1 Allies Corrupted . | . . . . . . . . . . . . Allies Melted . | . . . . . . . . . . . . Intel | -11 -10 -10 -10 -9 -8 -8 -7 -7 -7 -7 -6 ------- Run | Yrd Mat Min Exi Min Mat Gar Fac Gar Fac Gar Fac Robot Analysis Total 1 | . . . . . 1 . . . . . . Derelict Logs Recovered 2 | . . 1 . 1 . . . . . . . Drone Launches . | . . . . . . . . . . . . Drone Recoveries . | . . . . . . . . . . . . Exploration | -11 -10 -10 -10 -9 -8 -8 -7 -7 -7 -7 -6 ------------- Run | Yrd Mat Min Exi Min Mat Gar Fac Gar Fac Gar Fac Turns Passed 15026 | 108 265 598 544 1179 970 3221 702 2426 506 3629 878 Spaces Moved 9435 | 66 203 448 448 307 548 2115 810 1642 598 2001 249 Core 52 | 4 . 1 . . 1 . . . . 46 . Treads 1669 | . . . . . . . . . . 1420 249 Legs 1117 | . . 127 448 307 235 . . . . . . Wheels 585 | 62 203 320 . . . . . . . . . Hover 2744 | . . . . . 312 2115 88 . . 229 . Flight 3268 | . . . . . . . 722 1642 598 306 . Fastest Speed 40 | 50 100 100 120 120 46 46 40 40 40 40 160 Average Speed 81 | 96 100 105 120 120 95 59 43 40 40 129 160 Slowest Speed 190 | 100 100 120 120 120 190 170 120 40 40 160 160 Overloaded Moves . | . . . . . . . . . . . . Propulsion Burnouts . | . . . . . . . . . . . . Robots Hopped 3 | . . . . . . . 1 . 1 1 . Cave-ins Triggered 1 | . . . . . . 1 . . . . . Exploration Rate (%) 53 | 4 51 97 88 63 47 79 25 80 13 86 5 Regions Visited 11 Branch Regions 3 Pre-discovered Areas 1 | . . 1 . . . . . . . . . Known Exits Taken 4 | . . . . 1 1 . 1 . 1 . . Unknown Exits Taken 4 | 1 1 1 1 . . . . . . . . Scrap Searched 1 | . . 1 . . . . . . . . . Spaces Dug 92 | . . . . . 5 59 2 8 4 10 4 Terrain Destroyed 118 | . 26 . . . 5 59 2 8 4 10 4 Melee 92 | . . . . . 5 59 2 8 4 10 4 Projectile . | . . . . . . . . . . . . AOE 26 | . 26 . . . . . . . . . . Terrain Rammed . | . . . . . . . . . . . . Walls Destroyed . | . . . . . . . . . . . . Machines Disabled . | . . . . . . . . . . . . Actions | -11 -10 -10 -10 -9 -8 -8 -7 -7 -7 -7 -6 --------- Run | Yrd Mat Min Exi Min Mat Gar Fac Gar Fac Gar Fac Total 16122 | 97 231 540 454 1117 963 3926 1146 3328 839 2780 701 Wait 5762 | 8 1 63 4 805 349 1561 290 1565 211 497 408 Move 9421 | 65 202 447 447 306 548 2114 808 1641 596 1998 249 Hop 3 | . . . . . . . 1 . 1 1 . Pick Up 96 | 11 3 2 1 5 8 23 5 5 2 27 4 Fast Attach 40 | . . . . . 10 4 11 2 1 12 . Attach 58 | 6 1 4 2 1 3 10 3 2 2 16 8 Detach 4 | . . . . . 1 1 . . . 2 . Swap 35 | . 2 . . . 4 5 2 5 1 13 3 Drop 68 | . 1 . . . 12 19 14 4 2 16 . Fire 107 | 7 21 24 . . 2 8 5 11 13 10 6 Melee 432 | . . . . . 25 147 7 62 10 158 23 Ram . | . . . . . . . . . . . . Kick . | . . . . . . . . . . . . Crush . | . . . . . . . . . . . . Escape Stasis 92 | . . . . . . 31 . 31 . 30 . Rewire . | . . . . . . . . . . . . Trap 4 | . . . . . 1 3 . . . . . Miscellaneous . | . . . . . . . . . . . . Route ------- -11/Scrapyard -10/Materials -10/Mines (discovered 3 exits: [*Mat x2] / *Exi) -10/Exiles -9/Mines -8/Materials -8/Garrison (discovered 3 exits: *Fac x3) -7/Factory (discovered 4 exits: *Fac / [*Sto] / [*Low] / Gar) -7/Garrison (discovered 4 exits: *Fac x4) -7/Factory -7/Garrison (discovered 3 exits: *Fac x3) -6/Factory History --------- Turn | Location | Event 2 | -11/Scrapyard | Discovered new exit (range 16) 109 | -11/Scrapyard | Entered Materials 308 | -10/Materials | Build established: Mutant 339 | -10/Materials | Discovered new exit (range 6) 374 | -10/Materials | Entered Mines 638 | -10/Mines | Lost 4 parts (1p1n2w) 655 | -10/Mines | Assembled infested the area 660 | -10/Mines | Assisted by a Guerilla fighting off Assembled 736 | -10/Mines | Discovered new exit (range 15) 873 | -10/Mines | Discovered new exit (range 15) 918 | -10/Mines | Deemed a non-threat by the Exiles lab entrance 918 | -10/Mines | Discovered new exit (range 5) 972 | -10/Mines | Entered Exiles 972 | -10/Exiles | Accompanied by 2 allies 1002 | -10/Exiles | Led the pair of lost Derelicts to a safe place 1005 | -10/Exiles | Met 8R-AWN 1039 | -10/Exiles | Met EX-HEX 1074 | -10/Exiles | Met EX-BIN 1088 | -10/Exiles | Aligned with FarCom system 1089 | -10/Exiles | Given EX-Vault access code 1117 | -10/Exiles | Opened EX-Vault 1123 | -10/Exiles | Found Longsword +1 1148 | -10/Exiles | Warned to stay clear of 0b10 Research branches 1182 | -10/Exiles | Met EX-DEC 1235 | -10/Exiles | Visited The Gauntlet 1493 | -10/Exiles | Discovered new exit (range 14) 1516 | -10/Exiles | Left Exiles lab with Longsword +1 1516 | -10/Exiles | Entered Mines 1927 | -9/Mines | Identified exit to Materials 2057 | -9/Mines | Build established: Assassin 2175 | -9/Mines | Found a hidden stash of uninstalled traps 2695 | -9/Mines | Entered Materials 2695 | -8/Materials | Evolved 4 slots: Utility x4 3665 | -8/Materials | Identified exit to Garrison 3665 | -8/Materials | Entered Garrison 3761 | -8/Garrison | Build established: Ninja 3918 | -8/Garrison | Destroyed 7 combat bots 3957 | -8/Garrison | Triggered checkpoint 4208 | -8/Garrison | Build established: Assassin 4401 | -8/Garrison | Spotted B-75 Beast 4401 | -8/Garrison | Spotted B-75 Beast 4621 | -8/Garrison | Triggered checkpoint 4653 | -8/Garrison | Build established: Scout 4931 | -8/Garrison | Discovered new exit (range 5) 4933 | -8/Garrison | Identified exit to Factory 4935 | -8/Garrison | Crushed by falling debris 5101 | -8/Garrison | Triggered checkpoint 5371 | -8/Garrison | Discovered exit to Factory (range 8) 5821 | -8/Garrison | Core integrity fell below 50% 5855 | -8/Garrison | Garrison Relay disabled 5866 | -8/Garrison | Garrison Relay disabled 5872 | -8/Garrison | Garrison Relay disabled 5972 | -8/Garrison | Build established: Scavenger-Scout 6082 | -8/Garrison | Discovered exit to Factory (range 17) 6117 | -8/Garrison | Installed Relay Interface Framework 6161 | -8/Garrison | Garrison Relay disabled 6347 | -8/Garrison | Triggered checkpoint 6361 | -8/Garrison | Garrison Relay disabled 6594 | -8/Garrison | Build established: Bothacker-Scout 6886 | -8/Garrison | Entered Factory 6886 | -7/Factory | Accompanied by 3 allies 6886 | -7/Factory | Evolved 2 slots: Utility x2 7075 | -7/Factory | Fabricated Nuclear Pulse Array (x1) 7148 | -7/Factory | Discovered new exit (range 19) 7161 | -7/Factory | Discovered new exit (range 19) 7326 | -7/Factory | Discovered new exit (range 6) 7335 | -7/Factory | Lost 4 allies 7580 | -7/Factory | Identified exit to Garrison 7588 | -7/Factory | Entered Garrison 7588 | -7/Garrison | Accompanied by 2 allies 7778 | -7/Garrison | Triggered checkpoint 7927 | -7/Garrison | Discovered new exit (range 11) 7952 | -7/Garrison | Triggered checkpoint 7953 | -7/Garrison | Garrison Relay disabled 8008 | -7/Garrison | Triggered checkpoint 8167 | -7/Garrison | Triggered checkpoint 8190 | -7/Garrison | Triggered checkpoint 9070 | -7/Garrison | Found embedded Infiltrators 9079 | -7/Garrison | Discovered new exit (range 12) 9136 | -7/Garrison | Triggered checkpoint 9208 | -7/Garrison | Discovered new exit (range 11) 9228 | -7/Garrison | Triggered checkpoint 9276 | -7/Garrison | Garrison Relay disabled 9398 | -7/Garrison | Garrison Relay disabled 9408 | -7/Garrison | Triggered checkpoint 9472 | -7/Garrison | Lost 4 allies 9996 | -7/Garrison | Discovered new exit (range 5) 10014 | -7/Garrison | Entered Factory 10014 | -7/Factory | Accompanied by 1 ally 10414 | -7/Factory | First assault squad dispatched 10513 | -7/Factory | Identified exit to Garrison 10520 | -7/Factory | Entered Garrison 10520 | -7/Garrison | Accompanied by 3 allies 10588 | -7/Garrison | Triggered checkpoint 10829 | -7/Garrison | Garrison Relay disabled 11224 | -7/Garrison | Core integrity fell below 50% 11256 | -7/Garrison | Lost 4 parts (1p1n2u) 11544 | -7/Garrison | Build established: Bothacker-Assassin 11868 | -7/Garrison | Triggered checkpoint 11876 | -7/Garrison | Garrison Relay disabled 11964 | -7/Garrison | Garrison Relay disabled 11980 | -7/Garrison | Triggered checkpoint 11990 | -7/Garrison | Found embedded Infiltrators 12123 | -7/Garrison | Discovered new exit (range 19) 12186 | -7/Garrison | Heavy support dispatched to Factory 12315 | -7/Garrison | Lost 3 allies 12320 | -7/Garrison | Triggered checkpoint 12643 | -7/Garrison | Discovered new exit (range 13) 12738 | -7/Garrison | Garrison Relay disabled 12746 | -7/Garrison | Triggered checkpoint 12844 | -7/Garrison | Build established: Bothacker-Mutant 13013 | -7/Garrison | Discovered new exit (range 5) 13057 | -7/Garrison | Expanded RIF knowledge: Robot Detection 13130 | -7/Garrison | Garrison Relay disabled 13176 | -7/Garrison | H-XX Assembler disabled 13207 | -7/Garrison | Found Prototype Device 13212 | -7/Garrison | Identified Active Sensor Suite 13407 | -7/Garrison | Garrison Relay disabled 13498 | -7/Garrison | Triggered checkpoint 13504 | -7/Garrison | Build established: Bothacker-Assassin 13519 | -7/Garrison | Core integrity fell below 20% 13575 | -7/Garrison | Garrison Relay disabled 14149 | -7/Garrison | Entered Factory 14149 | -6/Factory | Accompanied by 1 ally 14149 | -6/Factory | Evolved 2 slots: Power x1, Utility x1 14499 | -6/Factory | First assault squad dispatched 14722 | -6/Factory | System corruption reached 10% 14752 | -6/Factory | Lost 5 parts (1p4u) 15027 | -6/Factory | Self-destructed Last Messages --------------- 14988_ COVW8QQ/XTUARY24 UD#Z VY2QLA YMZ 14990_ C-30 ARC bursts open, deploying its payload. 14990_ G-67 Veteran unfolds itself. 14990_ L-41 Fighter unfolds itself. 14990_ G-50 Soldier unfolds itself. 14990_ L-41 Fighter unfolds itself. 14990_ E-15 Imp unfolds itself. 14991_ Imp. Light Armor Plating blown off. 14991_ Rnf. Deuterium Engine blown off. 14991_ E-15 Imp destroyed. 15002_ K-01 Serf cleans the Nuclear Reactor. 15008_ K-01 Serf collects debris. 15016_ The unstable cave ceiling collapses. 15016_ G-50 Soldier Hvy. Laser severed. 15018_ Remote Datajack destroyed. 15021_ Imp. Heavy Treads destroyed. 15024_ L-41 Fighter suffers critical hit (Burn). 15025_ Adv. Sensor Array destroyed. 15026_ Longsword +1 destroyed. Map ----- +----------------------------------------------------+ | #?????????????# #????????????????????????????? | | #?????????????# #????????????????????????????? | | #?????????????# #????????????????????????????? | | #?????????????# #????????????????????????????? | | ############### ###################??????????? | | ???????????? | | #??????????????? | | = #??????????????? | | * % #??????????????? | | %! ! #??????????????? | | #########+############ ###+#########?????????? | | # =*%% % #????# # #?????????? | | # != == ! #????#^^ # #?????????? | | # """""" #????# # #?????????? | | "# """""" #????# # """ #?????????? | | ""# """""" #????# # """"" #?????????? | | ""# """""" ##???#g # """"" #?????????? | | ""# ##???# ##############????????? | | ""# ] ##???# # #????????? | | "# #????# # ! """ """ #????????? | | ""# "" "" #????# +*!%/""" """ #????????? | | ""# ""S"" #????# # ==""" """??????????? | | ""# """" #????# # "%" ??????????? | | ""##############????# !%= ####### ##??????????? | | "##?????????????######l##### ##?????????????? | | "#?????????????# g[@l! #?????????????????? | | #####?????????????#""" #?????????????????? | | ??????????????????#""" g #?????????????????? | | ??????????????????#"S #?????????????????? | | ??????????????????#""" """ ! #?????????????????? | | ??????????????????# "" """ #?????????????????? | | ??????????????????# """ #?????????????????? | | ??????????????????# #?????????????????? | | ??????????????????# """ """ #?????????????????? | | ??????????????????# """ "?" #?????????????????? | | ??????????????????# """ "?" #?????????????????? | | ?????????????????????? ??? #?????????????????? | | ??????????????????????##???#####?????????????????? | | ?????????????????????????????????????????????????? | | ?????????????????????????????????????????????????? | | ?????????????????????????????????????????????????? | | ?????????????????????????????????????????????????? | | ?????????????????????????????????????????????????? | | ?????????????????????????????????????????????????? | | | | | | | | | | | | | +----------------------------------------------------+ Best States ------------- Heat Dissipation 37 Energy Generation 23 Energy Capacity 340 Matter Stores 300 Matter Capacity 300 Sight Range 22 Robot Scan Range 20 Terrain Scan Range 16 Terrain Scan Density 10 ECM Strength 1 Additional Mass Support 12 EM Shielding 3 Armor Coverage 300 Evasion (%) 62 Melee Accuracy 5 Target Analysis 5 Core Analysis 6 Armor Integrity Analysis 30 Recoil Reduction 2 Offensive Hacking 10 Relay Coupler Types 3 Relay Coupler Value 67 Item Schematics ----------------- None Robot Schematics ------------------ None Fabricated ------------ Nuclear Pulse Array | x1 | -7/Factory | Preloaded Alien Tech Used ----------------- None Achievements -------------- Factory Defaults Challenges ------------ None Game ------ Seed ThrowingGammaProtection Manual? 0 Play Time 02:10:15 Cumulative 46.8 hours Start 2024.08.18 @ 10:41:04 End 2024.08.18 @ 14:07:14 Sessions 1 Manual Loads 0 Difficulty Rogue Special Mode None Game No. 75 Rogue 71 Adventurer 4 Explorer 0 Win Type - Total 0 Types 0/0/0/0/0/0/0/0/0 Lore% 12 Gallery% 36 Achievement% 28 Wizard Run 0 Options --------- Layout 1 ASCII 0 Keyboard 0 Movement Mouse Keybinds 0 Fullscreen 2 Font 24/Smallcaps Map View 50x35 Zoom Use 0% Tactical HUD 1 Map Filters NONE Filters NONE Steam 1 RUN: b41a6f65-4738-4dbf-9d5a-72bc7030a905